bitfinex/quotes_BTCUSD_20240719
["timestamp","ask_amount","ask_price","bid_price","bid_amount"]
[1721403217977,0.01801618,65389.0,65380.0,0.07717479]
[1721403217978,0.002794,65388.0,65380.0,0.07717479]
[1721403218182,0.002794,65388.0,65387.0,0.23110979]
[1721403218404,0.04531014,65398.0,65387.0,0.38404579]
[1721403218612,0.014,65395.0,65392.0,0.066]
[1721403219024,0.014,65395.0,65393.0,0.01010594]
[1721403219651,0.01306975,65400.0,65398.0,0.152907]
[1721403219862,0.01306975,65400.0,65396.0,0.1559709]
[1721403220080,1.0,65404.0,65399.0,0.01005027]
[1721403220299,1.0,65404.0,65403.0,0.53586879]
[1721403220721,1.0,65404.0,65403.0,0.62398196]
[1721403221572,1.013,65404.0,65403.0,0.54680717]
[1721403221784,1.013,65404.0,65403.0,0.24101117]
[1721403222024,1.013,65404.0,65403.0,0.60960717]
[1721403222248,1.019,65404.0,65403.0,1.07078491]
[1721403222872,1.02,65404.0,65403.0,1.07178491]
[1721403223092,1.02,65404.0,65403.0,1.07078491]
[1721403223300,1.02,65404.0,65403.0,1.51602013]
[1721403223523,1.02,65404.0,65403.0,1.66602013]
[1721403223728,1.014,65404.0,65403.0,1.66602013]
[1721403223942,1.014,65404.0,65403.0,1.61702013]
[1721403223943,1.022,65404.0,65403.0,1.61702013]
[1721403224391,0.01349908,65424.0,65417.0,0.1398]
[1721403224612,0.002794,65430.0,65426.0,0.152844]
[1721403224824,0.46304871,65432.0,65426.0,0.152844]
[1721403224825,0.01340072,65431.0,65426.0,0.152843]
[1721403225280,0.00084,65437.0,65423.0,0.305702]
[1721403225281,0.061219,65436.0,65423.0,0.305702]
[1721403225523,0.00084,65437.0,65428.0,0.152839]
[1721403225890,0.15438174,65436.0,65417.0,0.15878]
[1721403226093,0.0608,65434.0,65412.0,0.0663]
[1721403226360,0.15717574,65433.0,65414.0,0.305744]
[1721403226565,0.15717574,65433.0,65417.0,0.152864]
[1721403226782,0.002794,65433.0,65425.0,0.07717479]
[1721403227036,0.061219,65436.0,65428.0,0.001]
[1721403227484,0.005,65434.0,65428.0,0.001]
[1721403227898,0.061219,65436.0,65428.0,0.001]
[1721403228527,0.061219,65436.0,65428.0,0.153839]
[1721403228734,0.01484,65437.0,65428.0,0.001]
[1721403228944,0.062057,65437.0,65427.0,0.0618]
[1721403229365,0.005,65433.0,65427.0,0.0618]
[1721403229808,0.001,65434.0,65424.0,0.234048]
[1721403230030,0.001,65434.0,65421.0,0.371208]
[1721403230031,0.0163057,65434.0,65428.0,0.001]
[1721403230229,0.002794,65433.0,65428.0,0.001]
[1721403230669,0.15438174,65432.0,65428.0,0.001]
[1721403230938,0.002794,65431.0,65428.0,0.001]
[1721403232156,0.23658174,65430.0,65428.0,0.001]
[1721403232410,0.718437,65429.0,65428.0,0.001]
[1721403232609,1.17849274,65429.0,65428.0,0.001]
[1721403232822,1.17849274,65429.0,65428.0,0.002]
[1721403233236,1.17849274,65429.0,65428.0,0.001]
[1721403233668,1.17849274,65429.0,65428.0,0.002]
[1721403233894,1.17849274,65429.0,65428.0,0.001]
[1721403234169,0.152845,65426.0,65406.0,0.152891]
[1721403234377,0.31002174,65425.0,65424.0,0.001]
[1721403234591,0.61292074,65425.0,65424.0,0.001]
[1721403234830,0.61292074,65425.0,65406.0,0.15289]
[1721403234831,0.30722774,65425.0,65406.0,0.15289]
[1721403235039,0.002794,65424.0,65406.0,0.15289]
[1721403235251,0.15438174,65423.0,65405.0,0.0663]
[1721403235459,0.152857,65421.0,65401.0,0.07717479]
[1721403235681,0.152878,65412.0,65400.0,0.0603]
[1721403235915,0.292382,65410.0,65394.0,0.07735887]
[1721403236134,0.305777,65407.0,65406.0,0.001]
[1721403236340,0.61304674,65407.0,65406.0,0.001]
[1721403236546,0.15438174,65407.0,65394.0,0.00018408]
[1721403236753,0.445264,65410.0,65394.0,0.00018408]
[1721403236754,0.15717574,65406.0,65394.0,0.00018408]
[1721403236957,0.15717574,65406.0,65401.0,0.001]
[1721403237398,0.15717574,65406.0,65394.0,0.00018408]
[1721403237617,0.15717574,65406.0,65395.0,0.07717479]
[1721403238032,0.002794,65406.0,65402.0,0.07717479]
[1721403238244,0.01,65407.0,65402.0,0.07717479]
[1721403238505,0.005,65406.0,65402.0,0.15707479]
[1721403238719,0.005,65406.0,65403.0,0.30885245]
[1721403238928,0.01,65406.0,65404.0,0.152895]
[1721403239343,0.015,65406.0,65404.0,0.152895]
[1721403239553,0.015,65406.0,65402.0,0.15707479]
[1721403239778,0.015,65406.0,65405.0,0.152893]
[1721403239995,0.015,65406.0,65403.0,0.152896]
[1721403239996,0.01,65406.0,65403.0,0.152896]
[1721403240205,0.015,65406.0,65404.0,0.001]
[1721403240411,0.005,65406.0,65404.0,0.001]
[1721403240823,0.005,65407.0,65402.0,0.15807479]
[1721403241037,0.005,65406.0,65405.0,0.001]
[1721403241244,0.005,65406.0,65405.0,0.76852434]
[1721403241672,0.005,65406.0,65405.0,1.29059308]
[1721403241882,0.01,65406.0,65405.0,1.39059308]
[1721403242592,0.005,65406.0,65405.0,1.38653574]
[1721403242815,0.005,65406.0,65405.0,0.0619]
[1721403242816,0.01,65406.0,65405.0,0.0619]
[1721403243022,0.01,65406.0,65404.0,0.002]
[1721403243233,0.005,65406.0,65404.0,0.001]
[1721403243652,0.011,65406.0,65405.0,0.001]
[1721403244073,0.011,65406.0,65404.0,0.001]
[1721403244074,0.005,65406.0,65404.0,0.001]
[1721403244303,0.005,65406.0,65405.0,0.38296179]
[1721403244514,0.006,65406.0,65405.0,0.53891247]
[1721403244727,0.006,65406.0,65405.0,0.53585479]
[1721403244913,0.006,65406.0,65405.0,1.05605396]
[1721403245192,0.006,65406.0,65405.0,0.99802353]
[1721403245424,0.011,65406.0,65405.0,0.99802353]
[1721403245847,0.011,65406.0,65405.0,0.99602353]
[1721403245848,0.006,65406.0,65405.0,0.99602353]
[1721403246051,0.01283972,65419.0,65409.0,0.152882]
[1721403246269,0.01283972,65419.0,65412.0,0.07717479]
[1721403246496,0.0625,65428.0,65412.0,0.07717479]
[1721403246703,0.002794,65423.0,65412.0,0.07717479]
[1721403246905,0.0625,65428.0,65412.0,0.07717479]
[1721403247109,0.0625,65428.0,65413.0,0.0608]
[1721403247314,0.08976731,65424.0,65413.0,0.0608]
[1721403247521,0.002794,65423.0,65408.0,0.152884]
[1721403247935,0.17329132,65422.0,65412.0,0.001]
[1721403248142,0.155651,65421.0,65412.0,0.001]
[1721403248346,0.305722,65419.0,65412.0,0.001]
[1721403248561,0.305722,65419.0,65413.0,0.001]
[1721403248562,0.152868,65416.0,65413.0,0.001]
[1721403248778,0.305722,65419.0,65413.0,0.001]
[1721403248779,0.958616,65414.0,65413.0,0.001]
[1721403248975,0.17328834,65414.0,65412.0,0.001]
[1721403249186,0.002794,65413.0,65400.0,0.07717479]
[1721403249393,0.002794,65413.0,65412.0,0.001]
[1721403249604,0.02167009,65413.0,65400.0,0.07717479]
[1721403249811,0.002794,65413.0,65400.0,0.07717479]
[1721403250222,0.002794,65413.0,65408.0,0.001]
[1721403250223,0.15438174,65412.0,65408.0,0.001]
[1721403250442,0.08191969,65411.0,65408.0,0.001]
[1721403250668,0.15438174,65410.0,65395.0,0.07717479]
[1721403250870,0.002794,65409.0,65395.0,0.23009079]
[1721403251083,0.002794,65409.0,65400.0,0.001]
[1721403251084,0.15717574,65409.0,65400.0,0.001]
[1721403251330,0.305786,65406.0,65400.0,0.001]
[1721403251533,0.31006974,65405.0,65400.0,0.001]
[1721403251947,0.15717574,65405.0,65400.0,0.001]
[1721403252792,0.15717574,65405.0,65400.0,0.002]
[1721403252793,0.01856298,65404.0,65400.0,0.002]
[1721403252992,0.15717574,65403.0,65400.0,0.002]
[1721403254371,0.002794,65403.0,65402.0,0.07717479]
[1721403254580,0.005,65405.0,65403.0,0.1434]
[1721403254823,0.005,65405.0,65404.0,1.53370719]
[1721403256192,0.005,65405.0,65404.0,0.91885874]
[1721403256421,0.005,65405.0,65404.0,0.07717479]
[1721403256647,0.005,65405.0,65404.0,0.53586079]
[1721403256786,0.08,65414.0,65410.0,0.305759]
[1721403256990,0.08,65414.0,65412.0,0.07717479]
[1721403257189,0.08,65414.0,65413.0,0.458623]
[1721403257722,0.08,65414.0,65410.0,0.305762]
[1721403257936,0.08,65414.0,65410.0,0.001]
[1721403257937,0.09,65414.0,65410.0,0.001]
[1721403258164,0.09,65414.0,65411.0,0.07717479]
[1721403258336,0.09,65414.0,65411.0,0.23005179]
[1721403258337,0.099,65414.0,65411.0,0.23005179]
[1721403258534,0.099,65414.0,65411.0,0.07717479]
[1721403259361,0.099,65414.0,65411.0,0.23005279]
[1721403259523,0.089,65414.0,65411.0,0.07717479]
[1721403259722,0.099,65414.0,65413.0,0.153874]
[1721403259934,0.099,65414.0,65413.0,0.001]
[1721403260364,0.099,65414.0,65413.0,0.152874]
[1721403260365,0.089,65414.0,65413.0,0.152874]
[1721403260564,0.099,65414.0,65413.0,0.152874]
[1721403260910,0.099,65414.0,65412.0,0.152875]
[1721403261400,0.089,65414.0,65411.0,0.07717479]
[1721403261554,0.099,65414.0,65413.0,0.001]
[1721403261767,0.55173774,65414.0,65413.0,0.001]
[1721403261991,0.5712562,65414.0,65413.0,0.001]
[1721403262142,0.26400246,65414.0,65413.0,0.001]
[1721403262347,0.27474229,65414.0,65413.0,0.001]
[1721403262551,0.58199603,65414.0,65413.0,0.001]
[1721403262865,0.58199603,65414.0,65402.0,0.47014416]
[1721403262866,0.57199603,65414.0,65402.0,0.47014416]
[1721403263043,0.18743403,65413.0,65402.0,0.47014416]
[1721403263258,0.03023843,65412.0,65402.0,0.47014416]
[1721403263461,0.02231246,65411.0,65402.0,0.47014416]
[1721403263687,0.01963182,65410.0,65402.0,0.47014416]
[1721403263860,0.002794,65409.0,65403.0,0.07717479]
[1721403264069,0.01963182,65408.0,65403.0,0.07717479]
[1721403264283,0.1704,65414.0,65404.0,0.0030576]
[1721403264488,0.02258627,65413.0,65404.0,0.0030576]
[1721403264684,0.01979227,65412.0,65410.0,0.07817479]
[1721403264980,0.1694,65414.0,65410.0,0.07817479]
[1721403264981,0.01979266,65411.0,65410.0,0.07817479]
[1721403265166,0.18203647,65414.0,65410.0,0.07817479]
[1721403265167,0.10163647,65414.0,65410.0,0.07817479]
[1721403265392,0.02288965,65413.0,65410.0,0.07817479]
[1721403265595,0.10163647,65414.0,65410.0,0.001]
[1721403265596,0.05409565,65412.0,65410.0,0.001]
[1721403265800,0.02009565,65411.0,65410.0,0.001]
[1721403265941,0.15438174,65411.0,65410.0,0.001]
[1721403266151,0.77471439,65411.0,65410.0,0.001]
[1721403266347,0.77471439,65411.0,65400.0,0.000924]
[1721403266348,0.152882,65410.0,65400.0,0.000924]
[1721403266561,0.15717574,65409.0,65400.0,0.000924]
[1721403266784,0.15717574,65409.0,65402.0,0.001]
[1721403266785,0.04525343,65407.0,65402.0,0.001]
[1721403267028,0.23262199,65406.0,65402.0,0.001]
[1721403267247,0.03019282,65405.0,65400.0,0.000924]
[1721403267475,0.17668274,65404.0,65400.0,0.000924]
[1721403267684,0.019507,65403.0,65400.0,0.001924]
[1721403267917,0.002794,65402.0,65400.0,0.001924]
[1721403268117,0.019507,65401.0,65400.0,0.000924]
[1721403268976,0.04525343,65410.0,65400.0,0.000924]
[1721403269187,0.03301202,65409.0,65404.0,0.07717479]
[1721403269390,0.18314333,65414.0,65404.0,0.07717479]
[1721403269391,0.01950743,65408.0,65404.0,0.07717479]
[1721403269598,0.01950743,65407.0,65404.0,0.07717479]
[1721403269967,0.04525343,65412.0,65404.0,0.07717479]
[1721403269968,0.01950652,65406.0,65404.0,0.07717479]
[1721403270171,0.16050961,65414.0,65404.0,0.07717479]
[1721403270172,0.09263647,65414.0,65404.0,0.07717479]
[1721403270536,0.004,65410.0,65404.0,0.07717479]
[1721403270796,0.004,65410.0,65404.0,0.08023237]
[1721403271038,0.011,65407.0,65404.0,0.07817479]
[1721403271286,0.011,65407.0,65404.0,0.08123238]
[1721403271523,0.011,65407.0,65406.0,0.152891]
[1721403271782,0.09263647,65414.0,65406.0,0.305782]
[1721403272017,0.014,65410.0,65407.0,0.152887]
[1721403272496,0.014,65410.0,65408.0,0.152885]
[1721403273228,0.014,65410.0,65406.0,0.305782]
[1721403273513,0.014,65410.0,65407.0,0.152887]
[1721403273767,0.09263647,65414.0,65404.0,0.07717479]
[1721403273978,0.02,65407.0,65406.0,0.002]
[1721403274380,0.009,65407.0,65406.0,0.152891]
[1721403274587,0.009,65407.0,65406.0,0.459673]
[1721403274793,0.009,65407.0,65406.0,0.002]
[1721403274997,0.027,65410.0,65406.0,0.002]
[1721403275170,0.009,65407.0,65406.0,0.002]
[1721403275684,0.02,65407.0,65406.0,0.767455]
[1721403275881,0.02,65407.0,65406.0,0.92183674]
[1721403276361,0.02,65407.0,65406.0,0.003]
[1721403276559,0.02,65407.0,65406.0,0.23306579]
[1721403276912,0.08,65414.0,65408.0,0.152886]
[1721403277115,0.013,65410.0,65408.0,0.152886]
[1721403277886,0.013,65410.0,65407.0,0.07717479]
[1721403278105,0.093,65414.0,65408.0,0.001]
[1721403278306,0.0832,65409.0,65408.0,0.002]
[1721403278504,0.0832,65409.0,65408.0,0.001]
[1721403278505,0.14973804,65409.0,65408.0,0.001]
[1721403278941,0.14973804,65409.0,65408.0,0.002]
[1721403279137,0.0832,65409.0,65408.0,0.002]
[1721403279337,0.10400756,65409.0,65408.0,0.002]
[1721403279738,0.10400715,65409.0,65408.0,0.002]
[1721403279990,0.10400715,65409.0,65408.0,0.001]
[1721403279991,0.02080715,65409.0,65408.0,0.001]
[1721403280243,0.02680715,65409.0,65408.0,0.002]
[1721403280442,0.02680715,65409.0,65408.0,0.001]
[1721403280779,0.03380715,65409.0,65408.0,0.002]
[1721403282075,0.03436798,65409.0,65408.0,0.002]
[1721403282275,0.013,65409.0,65408.0,0.002]
[1721403282905,0.013,65409.0,65408.0,0.601958]
[1721403283109,0.013,65409.0,65408.0,0.73104968]
[1721403283313,0.013,65409.0,65408.0,0.90773]
[1721403284354,0.013,65409.0,65408.0,0.216086]
[1721403284561,0.013,65409.0,65408.0,0.154886]
[1721403284971,0.013,65409.0,65408.0,0.76643]
[1721403286063,0.013,65409.0,65408.0,1.47888374]
[1721403286267,0.013,65409.0,65408.0,2.00333331]
[1721403286491,0.013,65409.0,65408.0,2.35910531]
[1721403286899,0.013,65409.0,65408.0,2.48603348]
[1721403287105,0.08,65414.0,65413.0,1.234221]
[1721403287250,0.08,65414.0,65413.0,1.51790274]
[1721403287412,0.08,65414.0,65413.0,1.67225231]
[1721403288273,0.08,65414.0,65413.0,1.72225231]
[1721403288480,0.081,65414.0,65413.0,1.73025231]
[1721403288682,0.082,65414.0,65413.0,1.76425231]
[1721403289953,0.081,65414.0,65413.0,1.70625231]
[1721403290109,0.081,65414.0,65413.0,1.74525231]
[1721403290110,0.08,65414.0,65413.0,1.74525231]
[1721403290307,0.081,65414.0,65413.0,1.75225231]
[1721403290692,0.08,65414.0,65413.0,1.74525231]
[1721403290895,0.081,65414.0,65413.0,1.75525231]
[1721403291095,0.081,65414.0,65413.0,1.75425231]
[1721403291297,0.002794,65432.0,65428.0,0.1437]
[1721403291508,0.54538871,65449.0,65436.0,0.458463]
[1721403291718,0.002794,65448.0,65436.0,0.826505]
[1721403291928,0.46388871,65449.0,65445.0,0.4584]
[1721403291929,0.00084,65449.0,65445.0,0.4584]
[1721403292148,0.46304871,65448.0,65445.0,1.3756]
[1721403292356,0.00084,65449.0,65445.0,1.22398174]
[1721403292555,0.00084,65449.0,65445.0,1.29628218]
[1721403292756,0.00084,65449.0,65445.0,1.35868218]
[1721403293582,0.00084,65449.0,65445.0,1.71468218]
[1721403294444,0.00084,65449.0,65445.0,1.71568218]
[1721403295019,0.00084,65449.0,65445.0,2.02028218]
[1721403295220,0.00084,65449.0,65445.0,2.27758218]
[1721403295469,0.00084,65449.0,65445.0,2.22758218]
[1721403295683,0.00084,65449.0,65445.0,1.96675824]
[1721403295882,0.00084,65449.0,65445.0,1.89898218]
[1721403296080,0.00084,65449.0,65445.0,1.38978174]
[1721403296304,0.00084,65449.0,65445.0,0.4614]
[1721403296504,0.00084,65449.0,65445.0,1.22698174]
[1721403296658,0.00084,65449.0,65445.0,1.22398174]
[1721403297063,0.00936,65446.0,65445.0,1.22398174]
[1721403297263,0.00936,65446.0,65445.0,1.35137991]
[1721403297522,0.00836,65446.0,65445.0,1.40137991]
[1721403297745,0.00836,65446.0,65445.0,1.57437991]
[1721403297933,0.00836,65446.0,65445.0,2.02227991]
[1721403297934,0.01036,65446.0,65445.0,2.02227991]
[1721403298478,0.00836,65446.0,65445.0,1.59367991]
[1721403298629,0.00836,65446.0,65445.0,1.59667991]
[1721403299057,0.00836,65446.0,65445.0,1.66967991]
[1721403299243,0.00836,65446.0,65445.0,1.62567991]
[1721403299453,0.00836,65446.0,65445.0,1.47528174]
[1721403299712,0.00836,65446.0,65445.0,1.85388174]
[1721403300050,0.00836,65446.0,65445.0,1.85088174]
[1721403300252,0.00836,65446.0,65445.0,1.90088174]
[1721403300450,0.00836,65446.0,65445.0,2.06223131]
[1721403300882,0.00836,65446.0,65445.0,2.05523131]
[1721403301255,0.00836,65446.0,65445.0,2.01323131]
[1721403301604,0.00836,65446.0,65445.0,1.53028174]
[1721403301778,0.00836,65446.0,65445.0,1.51528174]
[1721403301981,0.00836,65446.0,65445.0,1.52428174]
[1721403302181,0.00936,65446.0,65445.0,2.15708174]
[1721403302583,0.00836,65450.0,65449.0,1.235133]
[1721403302584,0.00438064,65450.0,65449.0,1.235133]
[1721403302784,0.00438064,65450.0,65449.0,1.66686431]
[1721403303179,0.00438064,65450.0,65449.0,1.97244531]
[1721403303394,0.00438064,65450.0,65449.0,1.61686431]
[1721403304237,0.00438064,65450.0,65449.0,1.56686431]
[1721403304463,0.00438064,65450.0,65449.0,1.54386431]
[1721403304909,0.00438064,65450.0,65449.0,1.54886431]
[1721403305233,0.00438064,65450.0,65449.0,1.59886431]
[1721403305456,0.00438064,65450.0,65449.0,1.59386431]
[1721403305662,0.00438064,65450.0,65449.0,1.59886431]
[1721403306327,0.00438064,65450.0,65449.0,1.60586431]
[1721403306962,0.00438064,65450.0,65449.0,1.61286431]
[1721403307102,0.00438064,65450.0,65449.0,1.60086431]
[1721403307309,0.00438064,65450.0,65449.0,1.67386431]
[1721403307539,0.00438064,65450.0,65449.0,1.68586431]
[1721403307738,0.00438064,65450.0,65449.0,1.62886431]
[1721403307969,0.00438064,65450.0,65449.0,1.62386431]
[1721403308392,0.00438064,65450.0,65449.0,1.67986431]
[1721403308726,0.00438064,65450.0,65449.0,1.97944531]
[1721403309320,0.00438064,65450.0,65449.0,1.98644531]
[1721403309529,0.00836,65459.0,65458.0,1.069386]
[1721403309741,0.00836,65459.0,65458.0,1.58373453]
[1721403310625,0.00837,65478.0,65463.0,0.152756]
[1721403311033,0.00837,65478.0,65464.0,0.305506]
[1721403311233,0.00837,65478.0,65467.0,0.152747]
[1721403311655,0.00837,65478.0,65461.0,0.305524]
[1721403311656,0.02085267,65470.0,65461.0,0.305524]
[1721403311853,0.00836,65470.0,65469.0,0.152744]
[1721403312054,0.01136,65470.0,65469.0,0.152744]
[1721403312536,0.01136,65470.0,65469.0,1.00792]
[1721403312712,0.01636,65470.0,65469.0,1.00792]
[1721403313289,0.01836,65470.0,65469.0,1.46878974]
[1721403313645,0.01336,65470.0,65469.0,1.62313931]
[1721403313847,0.01636,65470.0,65469.0,1.62313931]
[1721403314048,0.01736,65470.0,65469.0,1.46878974]
[1721403314382,0.01736,65470.0,65469.0,1.22458974]
[1721403314614,0.01736,65470.0,65469.0,1.46778974]
[1721403314615,0.00836,65470.0,65469.0,1.46778974]
[1721403316039,0.00836,65470.0,65469.0,1.61778974]
[1721403316244,0.00836,65470.0,65469.0,1.56778974]
[1721403316444,0.00836,65470.0,65469.0,2.36513505]
[1721403316650,0.00836,65470.0,65469.0,2.36613505]
[1721403316821,0.00836,65470.0,65469.0,1.98764705]
[1721403317599,0.00836,65470.0,65469.0,2.41613505]
[1721403317800,0.00837,65477.0,65469.0,2.41613505]
[1721403317801,0.00837,65477.0,65472.0,0.1]
[1721403318099,0.00837,65477.0,65472.0,1.91656892]
[1721403318299,0.00837,65477.0,65473.0,0.1]
[1721403318517,0.00837,65477.0,65476.0,0.252727]
[1721403318705,0.00837,65477.0,65476.0,1.55333513]
[1721403318886,0.002,65489.0,65482.0,0.05]
[1721403319058,0.002,65489.0,65488.0,1.007697]
[1721403319277,0.002,65489.0,65488.0,1.56191232]
[1721403319478,0.002,65499.0,65498.0,0.76338]
[1721403319828,0.002,65499.0,65498.0,1.46731374]
[1721403320034,0.002,65499.0,65498.0,1.62053511]
[1721403320645,0.002,65499.0,65498.0,1.84731122]
[1721403321287,0.002,65499.0,65498.0,2.20266322]
[1721403321492,0.002,65499.0,65498.0,2.25266322]
[1721403321793,0.00835,65503.0,65502.0,1.168669]
[1721403322067,0.00835,65503.0,65502.0,1.94169278]
[1721403322283,0.002,65509.0,65508.0,1.184571]
[1721403322500,0.00115026,65524.0,65518.0,0.05]
[1721403322715,0.00115026,65524.0,65518.0,1.13554853]
[1721403322950,0.00115026,65524.0,65518.0,1.47480753]
[1721403323154,0.00115026,65524.0,65518.0,1.16954853]
[1721403323369,0.00115026,65524.0,65518.0,1.71900753]
[1721403324472,0.00115026,65524.0,65518.0,0.88173334]
[1721403324685,0.00115026,65524.0,65518.0,0.85646974]
[1721403324895,0.1487,65520.0,65518.0,0.2492]
[1721403325099,0.1487,65520.0,65518.0,0.401829]
[1721403325310,0.1487,65520.0,65518.0,0.702088]
[1721403326010,0.1487,65520.0,65518.0,1.007347]
[1721403326225,0.1487,65520.0,65502.0,0.13655185]
[1721403326429,0.01718503,65519.0,65499.0,0.32137479]
[1721403326636,0.01718503,65519.0,65518.0,0.002]
[1721403326637,0.02955439,65519.0,65518.0,0.002]
[1721403326865,0.002,65519.0,65518.0,0.002]
[1721403327951,0.002,65519.0,65507.0,0.77545116]
[1721403327952,0.002,65519.0,65507.0,0.47014416]
[1721403328168,0.002,65519.0,65507.0,0.001]
[1721403328169,0.065894,65517.0,65507.0,0.001]
[1721403328634,0.0631,65517.0,65507.0,0.001]
[1721403328840,0.0631,65517.0,65508.0,0.07717479]
[1721403328841,0.002794,65516.0,65508.0,0.07717479]
[1721403329046,0.0631,65517.0,65508.0,0.07717479]
[1721403329937,0.0631,65517.0,65506.0,0.07717479]
[1721403330150,0.0826,65516.0,65501.0,0.47014416]
[1721403330358,0.0789,65512.0,65501.0,0.47014416]
[1721403330573,0.002794,65511.0,65502.0,0.07717479]
[1721403330803,0.0789,65512.0,65502.0,0.07717479]
[1721403331008,0.0789,65512.0,65502.0,0.17770909]
[1721403331441,0.0762,65510.0,65501.0,0.47014416]
[1721403331653,0.0762,65510.0,65507.0,0.001]
[1721403331868,0.0762,65510.0,65507.0,0.002]
[1721403332116,0.0762,65510.0,65508.0,0.00545082]
[1721403332117,0.002794,65509.0,65508.0,0.00545082]
[1721403332320,0.0762,65510.0,65508.0,0.00545082]
[1721403332548,0.0762,65510.0,65502.0,0.07717479]
[1721403332756,0.0762,65510.0,65501.0,0.47014416]
[1721403332961,0.002794,65509.0,65503.0,0.00545952]
[1721403333168,0.002794,65509.0,65501.0,0.47014416]
[1721403333169,0.002794,65509.0,65502.0,0.08263605]
[1721403333419,0.002794,65509.0,65504.0,0.00545778]
[1721403333623,0.0772,65510.0,65503.0,0.00545952]
[1721403333855,0.0772,65510.0,65509.0,0.07717479]
[1721403334323,0.001,65510.0,65509.0,0.73375157]
[1721403334529,0.001,65510.0,65509.0,1.03905257]
[1721403334959,0.07645026,65525.0,65510.0,0.152646]
[1721403335183,0.002794,65524.0,65509.0,0.08262387]
[1721403335400,0.002794,65524.0,65516.0,0.07717479]
[1721403335612,0.21608174,65523.0,65510.0,0.00544783]
[1721403335825,0.21608174,65523.0,65503.0,0.001]
[1721403335826,0.0656,65521.0,65517.0,0.00543355]
[1721403336032,0.218229,65518.0,65502.0,0.07817479]
[1721403336244,0.218229,65518.0,65510.0,0.001]
[1721403336245,0.0656,65516.0,65510.0,0.001]
[1721403336469,0.15717574,65515.0,65510.0,0.001]
[1721403336901,0.15717574,65515.0,65501.0,0.47014416]
[1721403337084,0.061,65514.0,65501.0,0.47014416]
[1721403337341,0.002794,65513.0,65502.0,0.08217951]
[1721403337556,0.002794,65513.0,65502.0,0.00500472]
[1721403337786,0.061,65514.0,65502.0,0.00500472]
[1721403337787,0.308086,65511.0,65502.0,0.00500472]
[1721403337996,0.0767,65508.0,65501.0,0.47014416]
[1721403338204,0.152658,65506.0,65493.0,0.47014416]
[1721403338418,0.002794,65507.0,65493.0,0.47014416]
[1721403338618,0.0767,65508.0,65494.0,0.08264842]
[1721403338619,0.002794,65505.0,65494.0,0.08264842]
[1721403339047,0.15438174,65504.0,65494.0,0.00547363]
[1721403339250,0.002794,65503.0,65502.0,0.001]
[1721403339460,0.15717574,65503.0,65502.0,0.001]
[1721403339720,0.15717574,65503.0,65501.0,0.001]
[1721403339927,0.292667,65502.0,65501.0,0.001]
[1721403340136,0.142794,65502.0,65494.0,0.001]
[1721403340356,0.142794,65502.0,65501.0,0.07717479]
[1721403340558,0.14,65502.0,65495.0,0.00549042]
[1721403340767,0.14,65502.0,65494.0,0.07917479]
[1721403340768,0.1542794,65502.0,65501.0,0.00547998]
[1721403341010,0.14,65502.0,65501.0,0.00547998]
[1721403341221,0.002794,65501.0,65494.0,0.002]
[1721403341432,0.14,65502.0,65494.0,0.001]
[1721403341433,0.137794,65502.0,65494.0,0.001]
[1721403341671,0.15438174,65501.0,65495.0,0.00549267]
[1721403341878,0.152673,65500.0,65494.0,0.001]
[1721403342086,0.137794,65502.0,65494.0,0.001]
[1721403342087,0.15438174,65499.0,65494.0,0.001]
[1721403342511,0.15438174,65499.0,65495.0,0.00578534]
[1721403342935,0.15438174,65499.0,65490.0,0.002794]
[1721403343348,0.15438174,65499.0,65494.0,0.001]
[1721403343769,0.15438174,65499.0,65495.0,0.00526034]
[1721403343982,0.137794,65502.0,65496.0,0.07717479]
[1721403344198,0.137794,65502.0,65497.0,0.002794]
[1721403344413,0.007,65499.0,65497.0,0.00578254]
[1721403344626,0.007,65499.0,65498.0,0.002794]
[1721403344853,0.007,65499.0,65498.0,0.31290494]
[1721403345060,0.007,65499.0,65498.0,0.978023]
[1721403345276,0.007,65499.0,65498.0,1.22889437]
[1721403345719,0.00835,65536.0,65514.0,0.0816]
[1721403345923,0.46304871,65515.0,65514.0,0.0816]
[1721403346181,0.01244985,65522.0,65507.0,0.3049]
[1721403346401,0.1467,65521.0,65506.0,0.47014416]
[1721403346617,0.05,65520.0,65508.0,0.00575756]
[1721403346822,0.152637,65515.0,65507.0,0.00575947]
[1721403347045,0.152649,65510.0,65506.0,0.47014416]
[1721403347247,0.15438174,65514.0,65506.0,0.47014416]
[1721403347916,0.32510675,65514.0,65506.0,0.47014416]
[1721403348126,0.02086886,65513.0,65506.0,0.47014416]
[1721403348327,0.02086886,65513.0,65507.0,0.001]
[1721403348328,0.15438174,65512.0,65507.0,0.001]
[1721403348769,0.15438174,65512.0,65491.0,0.002794]
[1721403348770,0.152659,65506.0,65491.0,0.002794]
[1721403348984,0.296062,65504.0,65491.0,0.002794]
[1721403349199,0.15438174,65503.0,65491.0,0.002794]
[1721403349412,0.15438174,65503.0,65493.0,0.002794]
[1721403349630,0.1434,65504.0,65493.0,0.002794]
[1721403349631,0.1434,65504.0,65496.0,0.07717479]
[1721403349837,0.0828,65510.0,65503.0,0.07717479]
[1721403350042,0.1433,65518.0,65503.0,0.07717479]
[1721403350246,0.1433,65518.0,65510.0,0.07717479]
[1721403350450,0.1433,65518.0,65504.0,0.00548969]
[1721403350672,0.1433,65518.0,65503.0,0.22983879]
[1721403350673,0.1433,65518.0,65511.0,0.00547628]
[1721403350876,0.1433,65518.0,65510.0,0.07717479]
[1721403351309,0.1433,65518.0,65511.0,0.00547628]
[1721403351924,0.1433,65518.0,65511.0,0.001]